fUSD/lending_fUSD_20260401
["ID","MTS","AMOUNT","RATE_DAILY","PERIOD"]
[419238905,1775031032164,-500.0,8.052e-05,2]
[419238906,1775031032174,-500.0,8.052e-05,2]
[419238907,1775031032184,-500.0,8.052e-05,2]
[419238908,1775031032193,-624.73186652,8.052e-05,2]
[419238909,1775031032202,-261.2093537,8.052e-05,2]
[419238910,1775031032212,-500.0,8.052e-05,2]
[419238911,1775031032221,-264.09146923,8.052e-05,2]
[419238912,1775031032231,-500.0,8.052e-05,2]
[419238913,1775031032240,-500.0,8.052e-05,2]
[419238914,1775031032249,-500.0,8.052e-05,2]
[419238915,1775031032259,-500.0,8.052e-05,2]
[419238916,1775031032268,-500.0,8.052e-05,2]
[419238917,1775031032277,-500.0,8.052e-05,2]
[419238918,1775031032287,-500.0,8.052e-05,2]
[419238919,1775031032296,-500.0,8.052e-05,2]
[419238920,1775031032306,-500.0,8.052e-05,2]
[419238921,1775031032315,-500.0,8.052e-05,2]
[419238922,1775031032324,-500.0,8.052e-05,2]
[419238923,1775031032334,-500.0,8.052e-05,2]
[419238924,1775031032343,-500.0,8.052e-05,2]
[419238926,1775031032353,-500.0,8.052e-05,2]
[419238928,1775031032363,-500.0,8.052e-05,2]
[419238930,1775031032373,-500.0,8.052e-05,2]
[419238932,1775031032383,-377.2628896,8.052e-05,2]
[419238934,1775031032392,-500.0,8.052e-05,2]
[419238937,1775031032401,-500.0,8.052e-05,2]
[419238939,1775031032411,-500.0,8.052e-05,2]
[419238941,1775031032421,-500.0,8.052e-05,2]
[419238943,1775031032431,-500.0,8.052e-05,2]
[419238945,1775031032441,-500.0,8.052e-05,2]
[419238947,1775031032450,-500.0,8.052e-05,2]
[419238949,1775031032460,-500.0,8.052e-05,2]
[419238951,1775031032471,-500.0,8.052e-05,2]
[419238952,1775031032481,-500.0,8.052e-05,2]
[419238953,1775031032491,-1148.47548401,8.052e-05,2]
[419238954,1775031032500,-1148.47548401,8.052e-05,2]
[419238955,1775031032509,-1148.47548401,8.052e-05,2]
[419238956,1775031032519,-1148.47548401,8.052e-05,2]
[419238957,1775031032530,-1148.47548401,8.052e-05,2]
[419238958,1775031032539,-1148.47548401,8.052e-05,2]
[419238959,1775031032548,-1148.47548401,8.052e-05,2]
[419238960,1775031032558,-1148.47548401,8.052e-05,2]
[419238961,1775031032568,-1148.47548401,8.052e-05,2]
[419238962,1775031032578,-1148.47548401,8.052e-05,2]
[419238963,1775031032588,-1148.47548401,8.052e-05,2]
[419238964,1775031032598,-1148.47548401,8.052e-05,2]
[419238965,1775031032607,-1148.47548401,8.052e-05,2]
[419238966,1775031032617,-1148.47548401,8.052e-05,2]
[419238967,1775031032627,-1148.47548401,8.052e-05,2]
[419238968,1775031032637,-1148.47548401,8.052e-05,2]
[419238969,1775031032646,-1148.47548401,8.052e-05,2]
[419238970,1775031032655,-1148.47548401,8.052e-05,2]
[419238971,1775031032665,-1148.47548401,8.052e-05,2]
[419238972,1775031032674,-1148.47548401,8.052e-05,2]
[419238974,1775031032684,-1148.47548401,8.052e-05,2]
[419238976,1775031032694,-1148.47548401,8.052e-05,2]
[419238977,1775031032703,-1148.47548401,8.052e-05,2]
[419238978,1775031032713,-1148.47548401,8.052e-05,2]
[419238979,1775031032723,-1148.47548401,8.052e-05,2]
[419238980,1775031032732,-1148.47548401,8.052e-05,2]
[419238981,1775031032742,-1148.47548401,8.052e-05,2]
[419238982,1775031032753,-1148.47548401,8.052e-05,2]
[419238983,1775031032762,-1148.47548401,8.052e-05,2]
[419238984,1775031032772,-1148.47548401,8.052e-05,2]
[419238985,1775031032782,-1148.47548401,8.052e-05,2]
[419238986,1775031032793,-1148.47548401,8.052e-05,2]
[419238987,1775031032802,-1148.47548401,8.052e-05,2]
[419238988,1775031032812,-1148.47548401,8.052e-05,2]
[419238989,1775031032822,-1148.47548401,8.052e-05,2]
[419238990,1775031032832,-1148.47548401,8.052e-05,2]
[419238991,1775031032842,-24.2718057,8.052e-05,2]
[419238992,1775031032856,-1124.20367831,8.052e-05,2]
[419238993,1775031032866,-130.21440846,8.052e-05,2]
[419238994,1775031032877,-1018.26107555,8.052e-05,2]
[419238995,1775031032888,-1148.47548401,8.052e-05,2]
[419238996,1775031032898,-7.7655637,8.052e-05,2]
[419238997,1775031032914,-491.5847794,8.052e-05,2]
[419238998,1775031033021,-649.12514091,8.052e-05,2]
[419238999,1775031033032,-1148.47548401,8.052e-05,2]
[419239000,1775031033043,-802.39937508,8.052e-05,2]
[419239001,1775031037697,-1575.0,7.979e-05,2]
[419239002,1775031037948,-346.07610893,8.052e-05,2]
[419239003,1775031037958,-1148.47548401,8.052e-05,2]
[419239004,1775031037968,-1148.47548401,8.052e-05,2]
[419239005,1775031037979,-1148.47548401,8.052e-05,2]
[419239006,1775031037989,-1148.47548401,8.052e-05,2]
[419239007,1775031037999,-1148.47548401,8.052e-05,2]
[419239008,1775031038010,-1148.47548401,8.052e-05,2]
[419239009,1775031038019,-1158.6901695,8.052e-05,2]
[419239010,1775031038029,-1158.6901695,8.052e-05,2]
[419239011,1775031038039,-1158.6901695,8.052e-05,2]
[419239012,1775031038048,-1158.6901695,8.052e-05,2]
[419239013,1775031038057,-1158.6901695,8.052e-05,2]
[419239014,1775031038067,-1158.6901695,8.052e-05,2]
[419239015,1775031038076,-1158.6901695,8.052e-05,2]
[419239016,1775031038086,-1158.6901695,8.052e-05,2]
[419239017,1775031038096,-1158.6901695,8.052e-05,2]
[419239018,1775031038106,-1158.6901695,8.052e-05,2]
[419239019,1775031038116,-1158.6901695,8.052e-05,2]
[419239020,1775031038126,-1158.6901695,8.052e-05,2]
[419239021,1775031038135,-1158.6901695,8.052e-05,2]
[419239022,1775031038145,-1158.6901695,8.052e-05,2]
[419239023,1775031038155,-1158.6901695,8.052e-05,2]
[419239024,1775031038164,-1158.6901695,8.052e-05,2]
[419239025,1775031038174,-1158.6901695,8.052e-05,2]
[419239026,1775031038184,-1158.6901695,8.052e-05,2]
[419239027,1775031038194,-1158.6901695,8.052e-05,2]
[419239028,1775031038203,-1158.6901695,8.052e-05,2]
[419239029,1775031038213,-1158.6901695,8.052e-05,2]
[419239030,1775031038222,-1158.6901695,8.052e-05,2]
[419239031,1775031038232,-1158.6901695,8.052e-05,2]
[419239033,1775031038242,-1158.6901695,8.052e-05,2]
[419239035,1775031038252,-1158.6901695,8.052e-05,2]
[419239037,1775031038262,-1158.6901695,8.052e-05,2]
[419239039,1775031038271,-1158.6901695,8.052e-05,2]
[419239041,1775031038281,-1158.6901695,8.052e-05,2]
[419239043,1775031038290,-1658.69016956,8.052e-05,2]
[419239045,1775031038305,-1658.69016956,8.052e-05,2]
[419239047,1775031038315,-500.0,8.053e-05,2]
[419239049,1775031038325,-5333.22,8.054e-05,2]
[419239051,1775031038334,-166.66,8.062e-05,2]
[419239054,1775031038345,-415.31553778,8.077e-05,2]
[419239056,1775031038355,-1000.0,8.077e-05,2]
[419239058,1775031038365,-150.99,8.077e-05,2]
[419239060,1775031038375,-1031.59,8.077e-05,2]
[419239062,1775031038385,-9999.99,8.078e-05,2]
[419239064,1775031038395,-150.99,8.078e-05,2]
[419239066,1775031038404,-3945.91,8.078e-05,2]
[419239068,1775031038414,-355.25,8.078e-05,2]
[419239070,1775031038424,-4999.99,8.078e-05,2]
[419239072,1775031038434,-1924.72,8.078e-05,2]
[419239074,1775031038445,-5943.13,8.078e-05,2]
[419239076,1775031038454,-999.99,8.078e-05,2]
[419239078,1775031038464,-16182.97,8.078e-05,2]
[419239080,1775031038474,-299.99,8.078e-05,2]
[419239082,1775031038484,-500.0,8.078e-05,2]
[419239084,1775031038494,-265.76525703,8.078e-05,2]
[419239086,1775031038504,-451.55421871,8.078e-05,2]
[419239088,1775031038513,-195.16786773,8.078e-05,2]
[419239090,1775031038523,-500.0,8.078e-05,2]
[419239092,1775031038533,-564.47103538,8.078e-05,2]
[419239094,1775031038543,-500.0,8.078e-05,2]
[419239096,1775031038553,-500.0,8.078e-05,2]
[419239098,1775031038564,-500.0,8.078e-05,2]
[419239100,1775031038574,-211.4005417,8.078e-05,2]
[419239102,1775031038584,-9999.99,8.079e-05,2]
[419239105,1775031038594,-9999.99,8.079e-05,2]
[419239107,1775031038604,-9999.99,8.079e-05,2]
[419239109,1775031038615,-150.0,8.1e-05,2]
[419239111,1775031038624,-1740.0,8.104e-05,2]
[419239113,1775031038634,-1600.0,8.139e-05,2]
[419239115,1775031038644,-3588.10117931,8.14e-05,2]
[419239117,1775031038654,-1360.3911,8.14e-05,2]
[419239119,1775031038664,-1545.43,8.176e-05,2]
[419239121,1775031038674,-447.229905,8.178e-05,2]
[419239123,1775031038684,-202.44762194,8.185e-05,2]
[419239125,1775031038693,-150.0,8.2e-05,2]
[419239127,1775031038703,-1300.0,8.213e-05,2]
[419239129,1775031038714,-500.0,8.219e-05,2]
[419239131,1775031038723,-159.1633343,8.219e-05,2]
[419239133,1775031038734,-500.0,8.219e-05,2]
[419239135,1775031038744,-500.0,8.219e-05,2]
[419239137,1775031038754,-500.0,8.219e-05,2]
[419239139,1775031038764,-500.0,8.219e-05,2]
[419239141,1775031038775,-2000.0,8.219e-05,2]
[419239143,1775031038786,-171.55475208,8.223e-05,2]
[419239145,1775031038796,-500.0,8.223e-05,2]
[419239148,1775031038812,-500.0,8.223e-05,2]
[419239150,1775031038822,-500.43591004,8.223e-05,2]
[419239152,1775031038832,-549.35464074,8.223e-05,2]
[419239154,1775031038843,-500.0,8.223e-05,2]
[419239156,1775031038853,-500.0,8.223e-05,2]
[419239158,1775031038863,-315.73,8.227e-05,2]
[419239160,1775031038874,-1538.84346569,8.228e-05,2]
[419239163,1775031038889,-608.21269019,8.228e-05,2]
[419239165,1775031038901,-1617.40428583,8.228e-05,2]
[419239167,1775031038913,-132.98955829,8.228e-05,2]
[419239169,1775031038923,-203.068,8.228e-05,2]
[419239171,1775031038935,-761.16343089,8.234e-05,2]
[419239174,1775031038948,-2003.53762084,8.234e-05,2]
[419239176,1775031038960,-271.53096364,8.234e-05,2]
[419239178,1775031038972,-833.3319982,8.234e-05,2]
[419239180,1775031038983,-500.0,8.235e-05,2]
[419239182,1775031038993,-1702.72483654,8.238e-05,2]
[419239185,1775031039011,-767.54052114,8.238e-05,2]
[419239188,1775031039047,-187.26943817,8.238e-05,2]
[419239189,1775031039057,-1556.51530058,8.283e-05,2]
[419239190,1775031039074,-1043.48469942,8.283e-05,2]
[419239191,1775031039084,-1723.0,8.295e-05,2]
[419239192,1775031039095,-448.0,8.295e-05,2]
[419239193,1775031039105,-245.51530058,8.303e-05,2]
[419239194,1775031039126,-182.42469942,8.303e-05,2]
[419239196,1775031039136,-1209.0496684,8.311e-05,2]
[419239198,1775031039146,-222.0,8.311e-05,2]
[419239200,1775031039156,-2070.0,8.314e-05,2]
[419239202,1775031039166,-166.66,8.32e-05,2]
[419239204,1775031039176,-277.0,8.328e-05,2]
[419239206,1775031039188,-374.0,8.344e-05,2]
[419239208,1775031039199,-1200.0,8.383e-05,2]
[419239211,1775031039210,-997.28,8.434e-05,2]
[419239213,1775031039220,-1930.0,8.454e-05,2]
[419239215,1775031039229,-2700.0,8.457e-05,2]
[419239217,1775031039239,-500.0,8.509e-05,2]
[419239219,1775031039249,-798.0,8.549e-05,2]
[419239221,1775031039258,-1000.0,8.571e-05,2]
[419239223,1775031039268,-166.66,8.577e-05,2]
[419239225,1775031039278,-2480.0,8.578e-05,2]
[419239227,1775031039288,-1000.0,8.581e-05,2]
[419239229,1775031039298,-3050.0,8.602e-05,2]
[419239231,1775031039311,-1979.72,8.714e-05,2]
[419239233,1775031039321,-1000.51641949,8.771e-05,2]
[419239235,1775031039332,-1000.0,8.771e-05,2]
[419239237,1775031039342,-1680.0,8.775e-05,2]
[419239239,1775031039352,-420.0,8.775e-05,2]
[419239241,1775031039362,-373.66865711,8.783e-05,2]
[419239243,1775031039372,-5000.0,8.81e-05,2]
[419239245,1775031039381,-3253.02055558,8.81e-05,2]
[419239411,1775031041454,-234.0,8.226e-05,2]
[419239412,1775031041464,-407.3636,8.243e-05,2]
[419239413,1775031042561,-66.6364,8.243e-05,2]
[419239414,1775031042570,-534.03772529,8.81e-05,2]
[419239415,1775031042629,-1212.94171913,8.81e-05,2]
[419239416,1775031042639,-5000.0,8.81e-05,2]
[419239417,1775031042648,-656.15643601,8.81e-05,2]
[419239418,1775031042659,-4343.84356399,8.81e-05,2]
[419239419,1775031042668,-5000.0,8.81e-05,2]
[419239420,1775031042677,-193.0,8.81e-05,2]
[419239421,1775031042687,-250.0,8.821e-05,2]
[419239422,1775031042696,-218.0,8.827e-05,2]
[419239423,1775031042705,-166.66,8.835e-05,2]
[419239424,1775031042715,-1320.9,8.838e-05,2]
[419239425,1775031042724,-977.0,8.844e-05,2]
[419239426,1775031042733,-420.0,8.846e-05,2]
[419239427,1775031042742,-255.0,8.846e-05,2]
[419239428,1775031042752,-878.32,8.892e-05,2]
[419239429,1775031042762,-4365.68,8.926e-05,2]
[419239430,1775031042771,-43914.77,8.926e-05,2]
[419239431,1775031042780,-806.47,8.968e-05,2]
[419239432,1775031042788,-1600.0,9.043e-05,2]
[419239433,1775031042797,-854.59,9.055e-05,2]
[419239434,1775031042807,-166.66,9.093e-05,2]
[419239435,1775031042816,-1500.0,9.118e-05,2]
[419239436,1775031042825,-332.23329004,9.128e-05,2]
[419239437,1775031042834,-2000.0,9.247e-05,2]
[419239438,1775031042846,-1500.0,9.318e-05,2]
[419239439,1775031042856,-7472.82277029,9.5e-05,3]
[419239440,1775031042865,-191.7209,9.6e-05,7]
[419239441,1775031042874,-838.0,9.652e-05,2]
[419239442,1775031042884,-180.0,9.652e-05,2]
[419239443,1775031042893,-2000.0,9.666e-05,2]
[419239444,1775031042902,-7346.78,9.67e-05,2]
[419239445,1775031042912,-582.0,9.73e-05,2]
[419239446,1775031042922,-2000.0,9.866e-05,2]
[419239447,1775031042932,-1600.0,9.947e-05,2]
[419239448,1775031042941,-488.92011993,0.0001,2]
[419239449,1775031042951,-500.0,0.0001,2]
[419239450,1775031042960,-500.0,0.0001,2]
[419239451,1775031042970,-500.0,0.0001,2]
[419239452,1775031042979,-200.0,0.0001,2]
[419239453,1775031042989,-500.0,0.0001,2]
[419239454,1775031042999,-500.0,0.0001,2]
[419239455,1775031043008,-500.0,0.0001,2]
[419239456,1775031043018,-500.0,0.0001,2]
[419239457,1775031043028,-500.0,0.0001,2]
[419239458,1775031043037,-500.0,0.0001,2]
[419239459,1775031043047,-500.0,0.0001,2]
[419239460,1775031043057,-500.0,0.0001,2]
[419239461,1775031043066,-500.0,0.0001,2]
[419239462,1775031043076,-151.0,0.0001,2]
[419239463,1775031043086,-151.0,0.0001,2]
[419239464,1775031043099,-151.0,0.0001,2]
[419239465,1775031043109,-151.0,0.0001,2]
[419239466,1775031043119,-151.0,0.0001,2]
[419239467,1775031043130,-151.0,0.0001,2]
[419239468,1775031043140,-151.0,0.0001,2]
[419239469,1775031043150,-151.0,0.0001,2]
[419239470,1775031043159,-500.0,0.0001,2]
[419239471,1775031043169,-151.0,0.0001,2]
[419239472,1775031043178,-151.0,0.0001,2]
[419239473,1775031043188,-500.0,0.0001,2]
[419239474,1775031043198,-151.0,0.0001,2]
[419239475,1775031043208,-151.0,0.0001,2]
[419239476,1775031043217,-500.0,0.0001,2]
[419239477,1775031043227,-151.0,0.0001,2]
[419239478,1775031043237,-151.0,0.0001,2]
[419239479,1775031043247,-500.0,0.0001,2]
[419239480,1775031043257,-151.0,0.0001,2]
[419239481,1775031043266,-151.0,0.0001,2]
[419239482,1775031043276,-500.0,0.0001,2]
[419239483,1775031043285,-151.0,0.0001,2]
[419239484,1775031043295,-500.0,0.0001,2]
[419239485,1775031043304,-151.0,0.0001,2]
[419239486,1775031043314,-500.0,0.0001,2]
[419239487,1775031043323,-151.0,0.0001,2]
[419239488,1775031043333,-500.0,0.0001,2]
[419239489,1775031043343,-151.0,0.0001,2]
[419239490,1775031043352,-500.0,0.0001,2]
[419239491,1775031043363,-151.0,0.0001,2]
[419239492,1775031043373,-500.0,0.0001,2]
[419239493,1775031043383,-151.0,0.0001,2]
[419239494,1775031043393,-500.0,0.0001,2]
[419239495,1775031043403,-219.80818474,0.0001,2]
[419239496,1775031043412,-500.0,0.0001,2]
[419239497,1775031043421,-151.0,0.0001,2]
[419239498,1775031043431,-1337.30371513,0.0001,2]
[419239499,1775031043442,-1977.03889303,0.0001,2]
[419239500,1775031043451,-10593.45637043,0.0001,2]
[419239501,1775031043461,-584.32262478,0.0001,2]
[419239502,1775031043470,-500.0,0.0001,2]
[419239503,1775031043480,-500.0,0.0001,2]
[419239505,1775031043489,-500.0,0.0001,2]
[419239507,1775031043498,-500.0,0.0001,2]
[419239509,1775031043508,-500.0,0.0001,2]
[419239511,1775031043518,-500.0,0.0001,2]
[419239513,1775031043528,-500.0,0.0001,2]
[419239515,1775031043538,-500.0,0.0001,2]
[419239516,1775031043548,-500.0,0.0001,2]
[419239518,1775031043558,-500.0,0.0001,2]
[419239520,1775031043568,-500.0,0.0001,2]
[419239522,1775031043578,-500.0,0.0001,2]
[419239524,1775031043587,-500.0,0.0001,2]
[419239526,1775031043597,-500.0,0.0001,2]
[419239528,1775031043607,-500.0,0.0001,2]
[419239530,1775031043617,-500.0,0.0001,2]
[419239532,1775031043627,-500.0,0.0001,2]
[419239534,1775031043636,-500.0,0.0001,2]
[419239536,1775031043646,-500.0,0.0001,2]
[419239538,1775031043655,-500.0,0.0001,2]
[419239540,1775031043665,-500.0,0.0001,2]
[419239542,1775031043675,-500.0,0.0001,2]
[419239544,1775031043685,-500.0,0.0001,2]
[419239546,1775031043695,-261.54857406,0.000101,2]
[419239548,1775031043705,-1203.19002491,0.00010214,2]
[419239550,1775031043715,-2000.0,0.00010274,2]
[419239552,1775031043727,-1976.41463132,0.00010414,2]
[419239553,1775031043737,-200.0,0.00010548,2]
[419239554,1775031043747,-1386.78395259,0.00010548,2]
[419239556,1775031043757,-250.0,0.00010596,2]
[419239557,1775031043766,-270.14237308,0.000107,2]
[419239558,1775031043776,-1600.0,0.00010852,2]
[419239559,1775031043786,-500.0,0.00010958,2]
[419239560,1775031043795,-500.0,0.00010958,3]
[419239562,1775031043805,-500.0,0.00010958,4]
[419239563,1775031043814,-500.0,0.00010958,5]
[419239564,1775031043825,-500.0,0.00010958,6]
[419239565,1775031043835,-235.16628401,0.00010958,7]
[419239566,1775031043844,-500.0,0.00010959,2]
[419239567,1775031043853,-216.6270075,0.00010959,2]
[419239568,1775031043863,-150.0,0.00010959,2]
[419239569,1775031043874,-150.0,0.00010959,2]
[419239570,1775031043884,-239.97550467,0.00010959,2]
[419239571,1775031043894,-5867.65943792,0.00011,2]
[419239572,1775031043904,-200.0,0.00011096,2]
[419239573,1775031043914,-1438.09495884,0.00011096,2]
[419239574,1775031043923,-42419.24405978,0.00011099,2]
[419239575,1775031043933,-42419.24405973,0.00011099,2]
[419239576,1775031043944,-245.0462,0.000111,12]
[419239577,1775031043954,-2000.0,0.00011301,2]
[419239578,1775031044281,-4693.82,0.00011507,2]
[419239579,1775031044292,-200.0,0.00011644,2]
[419239580,1775031044302,-931.87155833,0.00011644,2]
[419239581,1775031044312,-48009.51,0.00012055,2]
[419239582,1775031044322,-200.0,0.00012192,2]
[419239583,1775031044331,-2000.0,0.00012329,2]
[419239584,1775031044340,-313.2034,0.000126,17]
[419239585,1775031044349,-151.0,0.00012739,2]
[419239586,1775031044359,-200.0,0.0001274,2]
[419239587,1775031044368,-250.0,0.00013,2]
[419239588,1775031044378,-505.0,0.00013111,2]
[419239589,1775031044388,-200.0,0.00013288,2]
[419239590,1775031044397,-3240.0,0.00013425,2]
[419239591,1775031044406,-42419.24405973,0.0001356,2]
[419239592,1775031044415,-500.0,0.00013698,2]
[419239593,1775031044425,-500.0,0.00013698,2]
[419239594,1775031044436,-500.0,0.00013698,2]
[419239595,1775031044446,-150.0,0.00013699,2]
[419239596,1775031044455,-16362.27,0.00013699,2]
[419239597,1775031044464,-536.9866911,0.00013699,2]
[419239598,1775031044473,-224.28659877,0.00013699,2]
[419239599,1775031044482,-356.03578514,0.00013699,2]
[419239600,1775031044491,-500.0,0.00013699,2]
[419239601,1775031044501,-500.0,0.00013699,2]
[419239602,1775031044511,-500.0,0.00013699,2]
[419239603,1775031044522,-509.88873086,0.00013699,2]
[419239604,1775031044533,-500.0,0.00013699,2]
[419239605,1775031044542,-500.0,0.00013699,2]
[419239606,1775031044553,-216.88168899,0.00013699,2]
[419239607,1775031044563,-200.0,0.00013836,2]
[419239608,1775031044575,-150.0,0.00013973,2]
[419239609,1775031044585,-400.3178,0.00014,22]
[419239610,1775031044596,-1000.0,0.00014247,2]
[419239611,1775031044606,-506.56659925,0.00014247,2]
[419239612,1775031044616,-1000.0,0.00014266,2]
[419239613,1775031044626,-1000.0,0.00014266,2]
[419239614,1775031044636,-1000.0,0.00014266,2]
[419239615,1775031044646,-1000.0,0.00014266,2]
[419239616,1775031044656,-1000.0,0.00014266,2]
[419239617,1775031044665,-1000.0,0.00014266,2]
[419239618,1775031044674,-1000.0,0.00014266,2]
[419239619,1775031044684,-838.11,0.00014266,2]
[419239620,1775031044694,-200.0,0.00014384,2]
[419239621,1775031044703,-1500.0,0.00014795,2]
[419239622,1775031044712,-969.83,0.00014853,2]
[419239623,1775031044722,-7862.89,0.00014853,2]
[419239624,1775031044732,-200.0,0.00014932,2]
[419239625,1775031044742,-300.0,0.00015,2]
[419239626,1775031044752,-3674.27,0.00015471,2]
[419239627,1775031044763,-597.35,0.00015471,2]
[419239628,1775031044773,-7285.85,0.00015471,2]
[419239629,1775031044782,-152.5578191,0.00015478,2]
[419239630,1775031044792,-200.0,0.0001548,2]
[419239631,1775031044802,-511.6622,0.000155,27]
[419239632,1775031044811,-156.0,0.000156,2]
[419239633,1775031044820,-156.0,0.000156,2]
[419239634,1775031044830,-160.0,0.00015695,2]
[419239635,1775031044840,-2000.0,0.0001589,2]
[419239636,1775031044849,-150.0,0.000159,2]
[419239637,1775031044859,-150.0,0.000159,2]
[419239638,1775031044868,-213.4745671,0.000159,2]
[419239639,1775031044877,-151.0,0.000159,2]
[419239640,1775031044886,-237.18692904,0.000159,2]
[419239641,1775031044896,-7032.9794788,0.000159,2]
[419239642,1775031044907,-1686.84703864,0.00015916,2]
[419239643,1775031044917,-5054.75480365,0.0001596,2]
[419239644,1775031044927,-584.32262478,0.0001599,2]
[419239645,1775031044937,-584.32262478,0.0001599,2]
[419239646,1775031044946,-667071.72010718,0.00016,2]
[419239647,1775031044977,-1482.25,0.00016,2]
[419239648,1775031045309,-317.0,8.259e-05,2]
[419239649,1775031045319,-174.29455196,0.0001,2]
[419239650,1775031045328,-2937.60365679,0.00016,2]
[419239651,1775031045347,-787.8959738,0.00016,2]
[419239652,1775031045358,-316.220239,0.00016,2]
[419239653,1775031045474,-15004.16330012,0.00016,2]
[419239654,1775031045530,-344.0,0.00016,2]
[419239655,1775031045581,-327.365286,0.00016,2]
[419239656,1775031045902,-267503.70060264,0.00016,2]
[419239657,1775031045912,-72900.45456538,0.00016,2]
[419239658,1775031045924,-549.58915305,0.00016,2]
[419239659,1775031046073,-28314.13592414,0.00016,2]
[419239660,1775031046129,-12906.22436429,0.00016,2]
[419239661,1775031046288,-10626.8,0.00016,2]
[419239664,1775031100530,340.45,7.14e-05,2]
[419239665,1775031101416,-340.45,7.855e-05,2]
[419239666,1775031101444,-264.0,7.977e-05,2]
[419239667,1775031101471,-500.0,7.977e-05,2]
[419239668,1775031101502,-500.0,7.977e-05,2]
[419239669,1775031101529,-293.11010396,7.977e-05,2]
[419239670,1775031101557,-500.0,7.977e-05,2]
[419239671,1775031101584,-500.0,7.977e-05,2]
[419239672,1775031101614,-500.0,7.977e-05,2]
[419239673,1775031101640,-500.0,7.977e-05,2]
[419239674,1775031101666,-500.0,7.977e-05,2]
[419239675,1775031101696,-500.0,7.977e-05,2]
[419239676,1775031102178,-500.0,7.977e-05,2]
[419239677,1775031102205,-153.02920995,7.977e-05,2]
[419239678,1775031102237,-500.0,7.977e-05,2]
[419239679,1775031102265,-186.03567992,7.977e-05,2]
[419239680,1775031102295,-500.0,7.977e-05,2]
[419239681,1775031102326,-500.0,7.977e-05,2]
[419239682,1775031102356,-500.0,7.977e-05,2]
[419239683,1775031102386,-500.0,7.977e-05,2]
[419239684,1775031102417,-500.0,7.977e-05,2]
[419239685,1775031102447,-500.0,7.977e-05,2]
[419239686,1775031102478,-500.0,7.977e-05,2]
[419239687,1775031102618,-500.0,7.977e-05,2]
[419239688,1775031102648,-500.0,7.977e-05,2]
[419239689,1775031102679,-500.0,7.977e-05,2]
[419239690,1775031102708,-500.0,7.977e-05,2]
[419239691,1775031102739,-500.0,7.977e-05,2]
[419239692,1775031102770,-500.0,7.977e-05,2]
[419239693,1775031102801,-500.0,7.977e-05,2]
[419239694,1775031102831,-500.0,7.977e-05,2]
[419239695,1775031102861,-500.0,7.977e-05,2]
[419239696,1775031102891,-500.0,7.977e-05,2]
[419239697,1775031103530,-59.77648231,7.977e-05,2]
[419239698,1775031103545,-440.22351769,7.977e-05,2]
[419239699,1775031103555,-59.77648231,7.977e-05,2]
[419239700,1775031103591,-0.01,7.977e-05,2]
[419239701,1775031104338,-440.21351769,7.977e-05,2]
[419239702,1775031104371,-500.0,7.977e-05,2]
[419239703,1775031104404,-500.0,7.977e-05,2]
[419239704,1775031104436,-500.0,7.977e-05,2]
[419239705,1775031104469,-500.0,7.977e-05,2]
[419239706,1775031104503,-242.69295227,7.977e-05,2]
[419239707,1775031104534,-500.0,7.977e-05,2]
[419239708,1775031104563,-316.08795309,7.977e-05,2]
[419239709,1775031104594,-500.0,7.977e-05,2]
[419239710,1775031104761,-2002.0211539,7.978e-05,2]
[419239711,1775031104774,-10000.01,7.978e-05,2]
[419239712,1775031107415,-10000.01,7.978e-05,2]
[419239713,1775031140995,-300.0,7.977e-05,2]
[419239714,1775031141026,-150.0,7.977e-05,2]
[419239715,1775031141059,-264.0,7.977e-05,2]
[419239716,1775031141089,-250.0,7.977e-05,2]
[419239717,1775031141200,-8072.01,7.978e-05,2]
[419239718,1775031141256,-10000.01,7.978e-05,2]
[419239719,1775031146988,-10000.01,7.978e-05,2]
[419239720,1775031147224,-10000.01,7.978e-05,2]
[419239721,1775031223016,1588.8054213,7.522e-05,2]